[Event "Live Chess"]
[Site "Chess.com"]
[Date "2024.06.02"]
[Round "-"]
[White "Crowded_House"]
[Black "Andriy_Yaremovych"]
[Result "0-1"]
[WhiteElo "1648"]
[BlackElo "1630"]
[TimeControl "300"]
[EndTime "4:48:56 PDT"]
[Termination "Andriy_Yaremovych won by resignation"]

1. d4 {[%clk 0:04:56.8]} 1... b6 {[%clk 0:04:57.7]} 2. Bg5 {[%clk 0:04:55.4]}
2... Bb7 {[%clk 0:04:57.6]} 3. e3 {[%clk 0:04:53.7]} 3... h6 {[%clk 0:04:55.8]}
4. Bh4 {[%clk 0:04:52.1]} 4... g5 {[%clk 0:04:54.2]} 5. Bg3 {[%clk 0:04:51.3]}
5... e6 {[%clk 0:04:52.6]} 6. Nf3 {[%clk 0:04:50.2]} 6... d6 {[%clk 0:04:51.7]}
7. Bd3 {[%clk 0:04:48.6]} 7... Nd7 {[%clk 0:04:50.7]} 8. O-O {[%clk 0:04:46.8]}
8... h5 {[%clk 0:04:49.6]} 9. h3 {[%clk 0:04:44.8]} 9... Qe7 {[%clk 0:04:45.8]}
10. Nbd2 {[%clk 0:04:41.3]} 10... O-O-O {[%clk 0:04:43.8]} 11. c4 {[%clk
0:04:39]} 11... f5 {[%clk 0:04:42.6]} 12. d5 {[%clk 0:04:22.7]} 12... h4 {[%clk
0:04:33.3]} 13. Bh2 {[%clk 0:04:20.8]} 13... g4 {[%clk 0:04:31.3]} 14. dxe6
{[%clk 0:04:12.1]} 14... gxf3 {[%clk 0:04:29.5]} 15. Nxf3 {[%clk 0:04:10.3]}
15... Qxe6 {[%clk 0:04:25.3]} 16. Nd4 {[%clk 0:03:54.7]} 16... Qf6 {[%clk
0:04:18.1]} 17. Bxf5 {[%clk 0:03:46.8]} 17... Kb8 {[%clk 0:04:16.4]} 18. Bxd7
{[%clk 0:03:44.7]} 18... Rxd7 {[%clk 0:04:16.3]} 19. f3 {[%clk 0:03:34.8]} 19...
Rg7 {[%clk 0:04:13.5]} 20. e4 {[%clk 0:03:22.3]} 20... Nh6 {[%clk 0:04:07.1]}
21. Re1 {[%clk 0:02:58.4]} 21... Rhg8 {[%clk 0:04:04.3]} 22. Re2 {[%clk
0:02:55.7]} 22... Nf7 {[%clk 0:03:58.8]} 23. Nf5 {[%clk 0:02:53.3]} 23... Rg6
{[%clk 0:03:54]} 24. Qd4 {[%clk 0:02:42.8]} 24... Qd8 {[%clk 0:03:49.3]} 25. Bf4
{[%clk 0:02:27]} 25... Ng5 {[%clk 0:03:47.1]} 26. Bxg5 {[%clk 0:02:25.4]} 26...
Rxg5 {[%clk 0:03:46]} 27. Nxh4 {[%clk 0:02:16]} 27... Rh5 {[%clk 0:03:41.6]} 28.
Nf5 {[%clk 0:01:56.7]} 28... Rxh3 {[%clk 0:03:38.3]} 29. Kf2 {[%clk 0:01:49.7]}
29... Rh2 {[%clk 0:03:33.9]} 30. Rg1 {[%clk 0:01:47.6]} 30... Be7 {[%clk
0:03:27.2]} 31. Nxe7 {[%clk 0:01:45.9]} 31... Qxe7 {[%clk 0:03:27.1]} 32. b3
{[%clk 0:01:32.3]} 32... Qh4+ {[%clk 0:03:24.6]} 33. Kf1 {[%clk 0:01:29.9]}
33... Qf4 {[%clk 0:03:19.6]} 34. Qe3 {[%clk 0:01:26]} 34... Qe5 {[%clk
0:03:15.1]} 35. Qc1 {[%clk 0:01:08]} 35... Rf8 {[%clk 0:03:08.2]} 36. Ke1 {[%clk
0:01:04.7]} 36... Qg3+ {[%clk 0:03:04.2]} 37. Kd1 {[%clk 0:01:02]} 37... Ba6
{[%clk 0:03:02.7]} 38. Rd2 {[%clk 0:00:55.6]} 38... Rxf3 {[%clk 0:02:59.3]} 39.
Kc2 {[%clk 0:00:46.4]} 39... Rc3+ {[%clk 0:02:57]} 0-1

[Event "Live Chess"]
[Site "Chess.com"]
[Date "2024.06.02"]
[Round "-"]
[White "Ferrarifan27"]
[Black "StoreySniper"]
[Result "1/2-1/2"]
[WhiteElo "2174"]
[BlackElo "2497"]
[TimeControl "300"]
[EndTime "4:49:13 PDT"]
[Termination "Game drawn - insufficient material"]

1. e4 {[%clk 0:04:54]} 1... g6 {[%clk 0:04:59.1]} 2. d4 {[%clk 0:04:47.1]} 2...
Bg7 {[%clk 0:04:58.5]} 3. Nf3 {[%clk 0:04:43.6]} 3... c5 {[%clk 0:04:57.7]} 4.
dxc5 {[%clk 0:04:41.1]} 4... Qa5+ {[%clk 0:04:48.9]} 5. Bd2 {[%clk 0:04:39.2]}
5... Qxc5 {[%clk 0:04:46.3]} 6. Nc3 {[%clk 0:04:36]} 6... Nf6 {[%clk 0:04:44.6]}
7. Bd3 {[%clk 0:04:34.5]} 7... Nc6 {[%clk 0:04:43.1]} 8. a3 {[%clk 0:04:28.7]}
8... d6 {[%clk 0:04:34.5]} 9. O-O {[%clk 0:04:21.8]} 9... O-O {[%clk 0:04:32.8]}
10. h3 {[%clk 0:03:56.6]} 10... Be6 {[%clk 0:04:26.3]} 11. Be3 {[%clk 0:03:54]}
11... Qa5 {[%clk 0:04:23.9]} 12. Nd4 {[%clk 0:03:45.8]} 12... Nxd4 {[%clk
0:04:17.7]} 13. Bxd4 {[%clk 0:03:45.7]} 13... Rfc8 {[%clk 0:04:13.4]} 14. Re1
{[%clk 0:03:37]} 14... a6 {[%clk 0:03:49.1]} 15. Qf3 {[%clk 0:03:34.4]} 15... b5
{[%clk 0:03:39.5]} 16. e5 {[%clk 0:03:25.4]} 16... dxe5 {[%clk 0:03:37.4]} 17.
Bxe5 {[%clk 0:03:21.5]} 17... Nd7 {[%clk 0:03:11.3]} 18. Bxg7 {[%clk 0:03:18.6]}
18... Kxg7 {[%clk 0:03:09.7]} 19. Rad1 {[%clk 0:03:00.6]} 19... Nf6 {[%clk
0:03:02.6]} 20. Qb7 {[%clk 0:02:45.7]} 20... Qc7 {[%clk 0:02:52.2]} 21. Qxc7
{[%clk 0:02:43.7]} 21... Rxc7 {[%clk 0:02:51.3]} 22. Ne4 {[%clk 0:02:42.7]}
22... Nxe4 {[%clk 0:02:48.7]} 23. Bxe4 {[%clk 0:02:41.8]} 23... Rac8 {[%clk
0:02:43.3]} 24. Rd2 {[%clk 0:02:34.2]} 24... a5 {[%clk 0:02:40.9]} 25. Red1
{[%clk 0:02:31.5]} 25... b4 {[%clk 0:02:35.8]} 26. axb4 {[%clk 0:02:29.7]} 26...
axb4 {[%clk 0:02:35.1]} 27. Rd4 {[%clk 0:02:25.2]} 27... Rb8 {[%clk 0:02:33.6]}
28. b3 {[%clk 0:02:23.3]} 28... Bf5 {[%clk 0:02:29.3]} 29. Bxf5 {[%clk
0:02:22.2]} 29... gxf5 {[%clk 0:02:28.6]} 30. R1d2 {[%clk 0:02:21.4]} 30... e6
{[%clk 0:02:24.2]} 31. Rd7 {[%clk 0:02:16.8]} 31... Rxd7 {[%clk 0:02:19.3]} 32.
Rxd7 {[%clk 0:02:16.7]} 32... Rc8 {[%clk 0:02:18.7]} 33. Rb7 {[%clk 0:02:13.2]}
33... Rxc2 {[%clk 0:02:17.5]} 34. Rxb4 {[%clk 0:02:11.4]} 34... Rc1+ {[%clk
0:02:14.1]} 35. Kh2 {[%clk 0:02:10]} 35... Rb1 {[%clk 0:02:11.7]} 36. Kg3 {[%clk
0:02:05.3]} 36... Kg6 {[%clk 0:02:06.9]} 37. Rb6 {[%clk 0:02:00.2]} 37... h5
{[%clk 0:02:04.6]} 38. h4 {[%clk 0:01:57.9]} 38... Kf6 {[%clk 0:01:59.7]} 39. f3
{[%clk 0:01:52.2]} 39... Rb2 {[%clk 0:01:56.4]} 40. b4 {[%clk 0:01:46.6]} 40...
Ke5 {[%clk 0:01:53.9]} 41. Rb7 {[%clk 0:01:43.9]} 41... f4+ {[%clk 0:01:52.4]}
42. Kh3 {[%clk 0:01:43]} 42... f5 {[%clk 0:01:49.5]} 43. b5 {[%clk 0:01:35.7]}
43... Kd4 {[%clk 0:01:46.8]} 44. b6 {[%clk 0:01:32.7]} 44... Ke3 {[%clk
0:01:41.6]} 45. Rh7 {[%clk 0:01:28.7]} 45... Rxb6 {[%clk 0:01:32.5]} 46. Rxh5
{[%clk 0:01:26]} 46... Kf2 {[%clk 0:01:28]} 47. Rg5 {[%clk 0:01:24.2]} 47... Rb1
{[%clk 0:01:17.2]} 48. Kh2 {[%clk 0:01:22.3]} 48... Rb8 {[%clk 0:01:14.1]} 49.
h5 {[%clk 0:01:11.9]} 49... Rf8 {[%clk 0:01:13.1]} 50. h6 {[%clk 0:01:08.3]}
50... Rh8 {[%clk 0:01:07.2]} 51. Rg6 {[%clk 0:01:04.7]} 51... e5 {[%clk
0:01:06.5]} 52. Rf6 {[%clk 0:00:59.3]} 52... e4 {[%clk 0:01:00.5]} 53. fxe4
{[%clk 0:00:56.5]} 53... fxe4 {[%clk 0:00:59.8]} 54. Rxf4+ {[%clk 0:00:53.4]}
54... Ke3 {[%clk 0:00:59.1]} 55. Rf6 {[%clk 0:00:49.2]} 55... Kd2 {[%clk
0:00:58]} 56. g4 {[%clk 0:00:47.6]} 56... e3 {[%clk 0:00:57.4]} 57. g5 {[%clk
0:00:45.4]} 57... e2 {[%clk 0:00:56.8]} 58. Rd6+ {[%clk 0:00:44.2]} 58... Ke3
{[%clk 0:00:55]} 59. Re6+ {[%clk 0:00:42.9]} 59... Kf4 {[%clk 0:00:54.2]} 60.
Rxe2 {[%clk 0:00:32.2]} 60... Kxg5 {[%clk 0:00:53.2]} 61. Re6 {[%clk 0:00:28.6]}
61... Rxh6+ {[%clk 0:00:51.5]} 62. Rxh6 {[%clk 0:00:27.6]} 62... Kxh6 {[%clk
0:00:51.4]} 1/2-1/2

[Event "Live Chess"]
[Site "Chess.com"]
[Date "2024.06.02"]
[Round "-"]
[White "Zhevzh1k7"]
[Black "MaksymYurii"]
[Result "1-0"]
[WhiteElo "1112"]
[BlackElo "999"]
[TimeControl "300"]
[EndTime "4:49:28 PDT"]
[Termination "Zhevzh1k7 won by checkmate"]

1. e4 {[%clk 0:04:55.1]} 1... e5 {[%clk 0:04:59]} 2. Nf3 {[%clk 0:04:52.8]} 2...
Nc6 {[%clk 0:04:57.2]} 3. Bc4 {[%clk 0:04:50.7]} 3... d6 {[%clk 0:04:55.8]} 4.
d4 {[%clk 0:04:47.5]} 4... exd4 {[%clk 0:04:53.8]} 5. Nxd4 {[%clk 0:04:47.4]}
5... Nxd4 {[%clk 0:04:52.3]} 6. Qxd4 {[%clk 0:04:46.9]} 6... Nf6 {[%clk
0:04:50.5]} 7. Nc3 {[%clk 0:04:44.6]} 7... Be7 {[%clk 0:04:49.1]} 8. Bg5 {[%clk
0:04:41.6]} 8... O-O {[%clk 0:04:47.5]} 9. O-O {[%clk 0:04:38.5]} 9... c5 {[%clk
0:04:42.6]} 10. Qd3 {[%clk 0:04:35.7]} 10... a6 {[%clk 0:04:38.6]} 11. Nd5
{[%clk 0:04:34.2]} 11... Nxd5 {[%clk 0:04:35.2]} 12. Bxe7 {[%clk 0:04:32.7]}
12... Qxe7 {[%clk 0:04:32.9]} 13. Bxd5 {[%clk 0:04:30.9]} 13... Qe5 {[%clk
0:04:27.1]} 14. c3 {[%clk 0:04:25.3]} 14... Qg5 {[%clk 0:04:12.7]} 15. f4 {[%clk
0:04:19.7]} 15... Qg6 {[%clk 0:04:07.4]} 16. Bb3 {[%clk 0:04:04.3]} 16... Bh3
{[%clk 0:04:00]} 17. Qxh3 {[%clk 0:04:01]} 17... Rae8 {[%clk 0:03:52.6]} 18. f5
{[%clk 0:03:53.2]} 18... Qg5 {[%clk 0:03:41.3]} 19. Rae1 {[%clk 0:03:38.9]}
19... Qd2 {[%clk 0:03:36.6]} 20. f6 {[%clk 0:03:29.8]} 20... g6 {[%clk
0:03:26.6]} 21. Re3 {[%clk 0:03:17.7]} 21... Qxb2 {[%clk 0:03:21.3]} 22. Qh4
{[%clk 0:03:11.7]} 22... h5 {[%clk 0:03:08.4]} 23. Qg5 {[%clk 0:03:01.7]} 23...
Kh7 {[%clk 0:03:03.2]} 24. Rh3 {[%clk 0:02:53.7]} 24... Rxe4 {[%clk 0:02:49.2]}
25. Rxh5+ {[%clk 0:02:50]} 25... gxh5 {[%clk 0:02:46.3]} 26. Qxh5+ {[%clk
0:02:48.9]} 26... Kg8 {[%clk 0:02:40.9]} 27. Qg5+ {[%clk 0:02:43.8]} 27... Kh8
{[%clk 0:02:29]} 28. Qg7# {[%clk 0:02:42.6]} 1-0

[Event "Live Chess"]
[Site "Chess.com"]
[Date "2024.06.02"]
[Round "-"]
[White "Harry_Li"]
[Black "nigelst"]
[Result "1/2-1/2"]
[WhiteElo "2147"]
[BlackElo "1740"]
[TimeControl "300"]
[EndTime "4:49:41 PDT"]
[Termination "Game drawn - timeout vs insufficient material"]

1. e4 {[%clk 0:04:56.6]} 1... c6 {[%clk 0:04:58.9]} 2. d4 {[%clk 0:04:54.4]}
2... d5 {[%clk 0:04:58.3]} 3. Nd2 {[%clk 0:04:53.7]} 3... dxe4 {[%clk
0:04:56.6]} 4. Nxe4 {[%clk 0:04:53.6]} 4... Bf5 {[%clk 0:04:54.9]} 5. Ng3 {[%clk
0:04:52.9]} 5... Bg6 {[%clk 0:04:53.8]} 6. h4 {[%clk 0:04:52.5]} 6... h6 {[%clk
0:04:52.2]} 7. Nf3 {[%clk 0:04:52]} 7... Nd7 {[%clk 0:04:50.2]} 8. h5 {[%clk
0:04:50.2]} 8... Bh7 {[%clk 0:04:48.6]} 9. Bd3 {[%clk 0:04:49.8]} 9... Bxd3
{[%clk 0:04:47.3]} 10. Qxd3 {[%clk 0:04:49.7]} 10... e6 {[%clk 0:04:46.4]} 11.
Bd2 {[%clk 0:04:48.5]} 11... Ngf6 {[%clk 0:04:44.1]} 12. O-O-O {[%clk
0:04:47.9]} 12... Bd6 {[%clk 0:04:36.2]} 13. Ne4 {[%clk 0:04:44]} 13... Nxe4
{[%clk 0:04:33.7]} 14. Qxe4 {[%clk 0:04:43.9]} 14... Nf6 {[%clk 0:04:32.4]} 15.
Qe2 {[%clk 0:04:42.8]} 15... Qc7 {[%clk 0:04:29]} 16. g3 {[%clk 0:04:40.5]}
16... O-O {[%clk 0:04:22.6]} 17. Kb1 {[%clk 0:04:33.1]} 17... a5 {[%clk
0:04:19.9]} 18. c4 {[%clk 0:04:29.7]} 18... Bb4 {[%clk 0:04:15.8]} 19. Bf4
{[%clk 0:04:21.7]} 19... Bd6 {[%clk 0:04:13.5]} 20. Ne5 {[%clk 0:04:19.8]} 20...
Qe7 {[%clk 0:03:56.1]} 21. g4 {[%clk 0:04:12.6]} 21... Bxe5 {[%clk 0:03:52.9]}
22. dxe5 {[%clk 0:03:52.6]} 22... Nh7 {[%clk 0:03:45.3]} 23. Rd6 {[%clk
0:03:45.1]} 23... Rad8 {[%clk 0:03:41.1]} 24. Rhd1 {[%clk 0:03:43.8]} 24... Ng5
{[%clk 0:03:36.3]} 25. c5 {[%clk 0:03:38.1]} 25... Nh3 {[%clk 0:03:18.9]} 26.
Be3 {[%clk 0:03:29.3]} 26... Ng5 {[%clk 0:03:16.1]} 27. Qd3 {[%clk 0:03:21.1]}
27... Rxd6 {[%clk 0:03:04.6]} 28. exd6 {[%clk 0:02:53.9]} 28... Qd7 {[%clk
0:03:03.4]} 29. f4 {[%clk 0:02:50.5]} 29... Nh7 {[%clk 0:02:57.9]} 30. g5 {[%clk
0:02:49.1]} 30... hxg5 {[%clk 0:02:55.8]} 31. fxg5 {[%clk 0:02:49]} 31... e5
{[%clk 0:02:32.1]} 32. Qe4 {[%clk 0:02:34]} 32... Re8 {[%clk 0:02:26]} 33. Bd2
{[%clk 0:02:12]} 33... f5 {[%clk 0:02:22.6]} 34. gxf6 {[%clk 0:02:08.5]} 34...
Nxf6 {[%clk 0:02:21.2]} 35. Qg6 {[%clk 0:02:05.8]} 35... Qf7 {[%clk 0:02:03.2]}
36. Bxa5 {[%clk 0:02:01.2]} 36... Qxg6+ {[%clk 0:02:00.5]} 37. hxg6 {[%clk
0:02:01.1]} 37... Nd7 {[%clk 0:01:55.7]} 38. b4 {[%clk 0:01:23.5]} 38... e4
{[%clk 0:01:52]} 39. Kc2 {[%clk 0:01:18.2]} 39... e3 {[%clk 0:01:47.3]} 40. Re1
{[%clk 0:01:08]} 40... Nf6 {[%clk 0:01:36]} 41. Kd3 {[%clk 0:01:00.8]} 41... Re5
{[%clk 0:01:09.4]} 42. Rxe3 {[%clk 0:00:57.3]} 42... Rd5+ {[%clk 0:01:06.6]} 43.
Ke2 {[%clk 0:00:53.9]} 43... Rg5 {[%clk 0:00:55.5]} 44. d7 {[%clk 0:00:48.9]}
44... Nxd7 {[%clk 0:00:53.3]} 45. Re8+ {[%clk 0:00:47.8]} 45... Nf8 {[%clk
0:00:52.2]} 46. Bc7 {[%clk 0:00:29.6]} 46... Rxg6 {[%clk 0:00:49.6]} 47. Bd6
{[%clk 0:00:28.7]} 47... Rf6 {[%clk 0:00:48.6]} 48. a4 {[%clk 0:00:25]} 48...
Re6+ {[%clk 0:00:35.8]} 49. Rxe6 {[%clk 0:00:23.6]} 49... Nxe6 {[%clk
0:00:34.8]} 50. b5 {[%clk 0:00:18.2]} 50... cxb5 {[%clk 0:00:33.5]} 51. axb5
{[%clk 0:00:16.9]} 51... Nd4+ {[%clk 0:00:32.1]} 52. Kf1 {[%clk 0:00:14.8]}
52... Nxb5 {[%clk 0:00:30.9]} 53. Be5 {[%clk 0:00:13.4]} 53... Na7 {[%clk
0:00:25.7]} 54. Ke2 {[%clk 0:00:12.5]} 54... Nc6 {[%clk 0:00:24.5]} 55. Bc3
{[%clk 0:00:12.4]} 55... Kf7 {[%clk 0:00:22.1]} 56. Kf3 {[%clk 0:00:12.3]} 56...
g5 {[%clk 0:00:19.3]} 57. Kg4 {[%clk 0:00:11.7]} 57... Kg6 {[%clk 0:00:18.6]}
58. Bd2 {[%clk 0:00:11.2]} 58... Nd4 {[%clk 0:00:14.1]} 59. Kg3 {[%clk
0:00:11.1]} 59... Ne6 {[%clk 0:00:12.9]} 60. Kg4 {[%clk 0:00:09.7]} 60... Nxc5
{[%clk 0:00:11.4]} 61. Be3 {[%clk 0:00:09.2]} 61... Ne6 {[%clk 0:00:09.7]} 62.
Bd2 {[%clk 0:00:08.6]} 62... b5 {[%clk 0:00:08.4]} 63. Bb4 {[%clk 0:00:08.5]}
63... Nd4 {[%clk 0:00:06.8]} 64. Bd2 {[%clk 0:00:08.4]} 64... Nb3 {[%clk
0:00:05.6]} 65. Bc3 {[%clk 0:00:07.8]} 65... Nc1 {[%clk 0:00:04.2]} 66. Bb4
{[%clk 0:00:07.4]} 66... Nd3 {[%clk 0:00:03.6]} 67. Bc3 {[%clk 0:00:07]} 67...
Ne1 {[%clk 0:00:02.6]} 68. Bb4 {[%clk 0:00:06]} 68... Ng2 {[%clk 0:00:00.4]} 69.
Bd6 {[%clk 0:00:05.9]} 1/2-1/2

[Event "Live Chess"]
[Site "Chess.com"]
[Date "2024.06.02"]
[Round "-"]
[White "GwaryTek"]
[Black "JohanKjeldahl"]
[Result "1-0"]
[WhiteElo "1834"]
[BlackElo "1787"]
[TimeControl "300"]
[EndTime "4:49:42 PDT"]
[Termination "GwaryTek won by resignation"]

1. d4 {[%clk 0:04:54.1]} 1... Nf6 {[%clk 0:04:57.4]} 2. c4 {[%clk 0:04:53.6]}
2... e5 {[%clk 0:04:56.3]} 3. dxe5 {[%clk 0:04:52]} 3... Ng4 {[%clk 0:04:55.4]}
4. Nf3 {[%clk 0:04:51.6]} 4... Nc6 {[%clk 0:04:54.2]} 5. Nc3 {[%clk 0:04:50.3]}
5... Ngxe5 {[%clk 0:04:52]} 6. e3 {[%clk 0:04:48.9]} 6... Bc5 {[%clk 0:04:49.5]}
7. Be2 {[%clk 0:04:25.7]} 7... O-O {[%clk 0:04:47.5]} 8. Nd4 {[%clk 0:04:24.5]}
8... d6 {[%clk 0:04:44.9]} 9. O-O {[%clk 0:04:22.3]} 9... a5 {[%clk 0:04:40.9]}
10. Ne4 {[%clk 0:04:21.7]} 10... Bxd4 {[%clk 0:04:35.7]} 11. exd4 {[%clk
0:04:14.1]} 11... Ng6 {[%clk 0:04:33.9]} 12. Ng3 {[%clk 0:04:06.4]} 12... Bd7
{[%clk 0:04:27.3]} 13. b3 {[%clk 0:04:04.3]} 13... Re8 {[%clk 0:04:19.2]} 14.
Bb2 {[%clk 0:03:59.2]} 14... Qg5 {[%clk 0:04:16]} 15. f4 {[%clk 0:03:40.8]}
15... Qe7 {[%clk 0:04:09.6]} 16. f5 {[%clk 0:03:36.6]} 16... Qe3+ {[%clk
0:03:59.4]} 17. Kh1 {[%clk 0:03:34.5]} 17... Nf4 {[%clk 0:03:54.6]} 18. Rf3
{[%clk 0:03:17.6]} 18... Nxe2 {[%clk 0:03:36.9]} 19. Rxe3 {[%clk 0:03:13.3]}
19... Nxg3+ {[%clk 0:03:35.7]} 20. Rxg3 {[%clk 0:03:11.9]} 20... Re4 {[%clk
0:03:32]} 21. d5 {[%clk 0:02:35]} 21... Nb4 {[%clk 0:03:25.6]} 22. Rxg7+ {[%clk
0:02:03.4]} 22... Kf8 {[%clk 0:03:24.4]} 23. Qh5 {[%clk 0:02:02]} 1-0

[Event "Live Chess"]
[Site "Chess.com"]
[Date "2024.06.02"]
[Round "-"]
[White "McFim"]
[Black "CarmelJane"]
[Result "0-1"]
[WhiteElo "1719"]
[BlackElo "2035"]
[TimeControl "300"]
[EndTime "4:49:43 PDT"]
[Termination "CarmelJane won by resignation"]

1. e4 {[%clk 0:04:58.3]} 1... c5 {[%clk 0:04:58.1]} 2. Nf3 {[%clk 0:04:57.1]}
2... e6 {[%clk 0:04:57.6]} 3. Nc3 {[%clk 0:04:55.2]} 3... a6 {[%clk 0:04:55.5]}
4. b3 {[%clk 0:04:53.6]} 4... b5 {[%clk 0:04:52.1]} 5. Bb2 {[%clk 0:04:52.5]}
5... Bb7 {[%clk 0:04:51.7]} 6. d3 {[%clk 0:04:51.3]} 6... Nc6 {[%clk 0:04:51]}
7. g3 {[%clk 0:04:50.1]} 7... Nf6 {[%clk 0:04:44.3]} 8. Bg2 {[%clk 0:04:48.9]}
8... d5 {[%clk 0:04:43.8]} 9. O-O {[%clk 0:04:40.8]} 9... d4 {[%clk 0:04:43.1]}
10. Ne2 {[%clk 0:04:38]} 10... e5 {[%clk 0:04:42.2]} 11. Nd2 {[%clk 0:04:36.4]}
11... Bd6 {[%clk 0:04:31.7]} 12. f4 {[%clk 0:04:35.2]} 12... Ng4 {[%clk
0:04:28.6]} 13. Qc1 {[%clk 0:04:21.6]} 13... Ne3 {[%clk 0:04:11.1]} 14. Rf2
{[%clk 0:04:19.6]} 14... exf4 {[%clk 0:04:10.1]} 15. Nxf4 {[%clk 0:04:16.9]}
15... Bxf4 {[%clk 0:03:57.1]} 16. Rxf4 {[%clk 0:04:13.5]} 16... Nb4 {[%clk
0:03:52.8]} 17. Nf1 {[%clk 0:03:54]} 17... Nexc2 {[%clk 0:03:34.4]} 18. Qd2
{[%clk 0:03:37.2]} 18... Nxa1 {[%clk 0:03:30.3]} 19. Bxa1 {[%clk 0:03:37.1]}
19... O-O {[%clk 0:03:29.3]} 20. Rf2 {[%clk 0:03:34.8]} 20... Rc8 {[%clk
0:03:21.5]} 21. Bh3 {[%clk 0:03:30.5]} 21... Rc6 {[%clk 0:03:18.2]} 22. Qe2
{[%clk 0:03:18.9]} 22... Rf6 {[%clk 0:03:15.8]} 23. Rxf6 {[%clk 0:03:12]} 23...
Qxf6 {[%clk 0:03:14.1]} 24. Ne3 {[%clk 0:03:07.8]} 24... Qg5 {[%clk 0:03:09.6]}
25. Nf1 {[%clk 0:02:50.6]} 25... Qc1 {[%clk 0:02:53.6]} 26. a3 {[%clk
0:02:48.4]} 26... Nc2 {[%clk 0:02:40.3]} 27. Kf2 {[%clk 0:02:43.7]} 0-1

[Event "Live Chess"]
[Site "Chess.com"]
[Date "2024.06.02"]
[Round "-"]
[White "defenderalist"]
[Black "elis06"]
[Result "0-1"]
[WhiteElo "1533"]
[BlackElo "2326"]
[TimeControl "300"]
[EndTime "4:50:08 PDT"]
[Termination "elis06 won by resignation"]

1. e4 {[%clk 0:04:58.4]} 1... c6 {[%clk 0:04:59.1]} 2. d4 {[%clk 0:04:55.1]}
2... d5 {[%clk 0:04:58.4]} 3. Nc3 {[%clk 0:04:54.9]} 3... dxe4 {[%clk
0:04:57.4]} 4. Nxe4 {[%clk 0:04:54.8]} 4... Nd7 {[%clk 0:04:56.9]} 5. Bc4 {[%clk
0:04:53.1]} 5... Ngf6 {[%clk 0:04:54.2]} 6. Nxf6+ {[%clk 0:04:47.3]} 6... Nxf6
{[%clk 0:04:53.4]} 7. Ne2 {[%clk 0:04:42.6]} 7... e6 {[%clk 0:04:52.6]} 8. Bg5
{[%clk 0:04:40]} 8... Be7 {[%clk 0:04:51.9]} 9. O-O {[%clk 0:04:38.6]} 9... h6
{[%clk 0:04:51.1]} 10. Bh4 {[%clk 0:04:37.6]} 10... O-O {[%clk 0:04:50.3]} 11.
c3 {[%clk 0:04:35]} 11... b5 {[%clk 0:04:48.2]} 12. Bd3 {[%clk 0:04:33.7]} 12...
Bb7 {[%clk 0:04:47.3]} 13. f4 {[%clk 0:04:24.6]} 13... a6 {[%clk 0:04:45.8]} 14.
f5 {[%clk 0:04:21.4]} 14... exf5 {[%clk 0:04:39.7]} 15. Bxf5 {[%clk 0:04:18.8]}
15... c5 {[%clk 0:04:37.1]} 16. Bf2 {[%clk 0:03:55.4]} 16... Qd5 {[%clk
0:04:31.2]} 17. Bh3 {[%clk 0:03:41.7]} 17... cxd4 {[%clk 0:04:25.8]} 18. Bxd4
{[%clk 0:03:33.5]} 18... Rad8 {[%clk 0:04:22.2]} 19. Nf4 {[%clk 0:03:32.1]}
19... Qc6 {[%clk 0:04:16]} 20. Qe2 {[%clk 0:03:02.5]} 20... Rfe8 {[%clk
0:04:08.8]} 21. Qf2 {[%clk 0:02:39.6]} 21... Ne4 {[%clk 0:04:02.4]} 22. Qc2
{[%clk 0:02:16.9]} 22... Ng5 {[%clk 0:03:58.6]} 23. Qf5 {[%clk 0:02:02]} 23...
Bc8 {[%clk 0:03:43.4]} 24. Qd3 {[%clk 0:01:37.7]} 24... Nxh3+ {[%clk 0:03:26.5]}
25. Nxh3 {[%clk 0:01:23.6]} 25... Bc5 {[%clk 0:03:18.8]} 26. Qf3 {[%clk
0:01:10.4]} 26... Qxf3 {[%clk 0:03:15.8]} 27. Rxf3 {[%clk 0:01:09.5]} 27...
Bxd4+ {[%clk 0:03:15.3]} 28. cxd4 {[%clk 0:01:08.6]} 28... Rxd4 {[%clk 0:03:15]}
29. Raf1 {[%clk 0:01:05.3]} 29... Bxh3 {[%clk 0:03:13.6]} 30. Rxh3 {[%clk
0:00:59.5]} 30... Rd2 {[%clk 0:03:12.3]} 31. Rhf3 {[%clk 0:00:52.5]} 31... f6
{[%clk 0:03:11.3]} 32. R3f2 {[%clk 0:00:45.6]} 32... Ree2 {[%clk 0:03:08.6]} 33.
Rxe2 {[%clk 0:00:44.6]} 33... Rxe2 {[%clk 0:03:08.5]} 34. Rf2 {[%clk 0:00:44]}
34... Rxf2 {[%clk 0:03:05]} 35. Kxf2 {[%clk 0:00:43.2]} 35... Kf7 {[%clk
0:03:04.5]} 36. Ke3 {[%clk 0:00:42.1]} 36... Ke6 {[%clk 0:03:04]} 37. Ke4 {[%clk
0:00:41.1]} 37... f5+ {[%clk 0:03:02]} 38. Kd4 {[%clk 0:00:39.1]} 38... Kd6
{[%clk 0:03:01.3]} 39. b4 {[%clk 0:00:37.5]} 39... g5 {[%clk 0:02:57.7]} 40. g3
{[%clk 0:00:36.3]} 40... h5 {[%clk 0:02:54.8]} 41. h3 {[%clk 0:00:35.2]} 41...
h4 {[%clk 0:02:43]} 42. gxh4 {[%clk 0:00:30.6]} 42... gxh4 {[%clk 0:02:42.9]}
43. a3 {[%clk 0:00:27.8]} 43... Ke6 {[%clk 0:02:40.8]} 44. Ke3 {[%clk
0:00:26.1]} 44... Ke5 {[%clk 0:02:39]} 45. Kf3 {[%clk 0:00:24.4]} 45... f4
{[%clk 0:02:35.9]} 46. Kg4 {[%clk 0:00:22.3]} 46... Ke4 {[%clk 0:02:35.2]} 47.
Kxh4 {[%clk 0:00:21.6]} 47... f3 {[%clk 0:02:34.6]} 48. Kg3 {[%clk 0:00:20.7]}
48... Ke3 {[%clk 0:02:34]} 49. h4 {[%clk 0:00:18.9]} 49... f2 {[%clk 0:02:33.2]}
50. h5 {[%clk 0:00:16.7]} 50... f1=Q {[%clk 0:02:32]} 0-1